bitfinex/quotes_ETHUSD_20241024
["timestamp","ask_amount","ask_price","bid_price","bid_amount"]
[1729773360361,7.91404,2527.2,2526.9,0.15033946]
[1729773360562,3.95694,2527.2,2526.9,0.15033946]
[1729773361590,4.01823743,2527.1,2526.9,0.15033946]
[1729773361796,4.76726,2527.0,2526.9,0.15033946]
[1729773361963,4.82827743,2527.0,2526.9,0.15033946]
[1729773362169,3.95758,2526.8,2526.4,4.73398]
[1729773362602,0.87101743,2527.0,2526.4,4.73398]
[1729773362603,3.95756,2526.9,2526.5,3.95802]
[1729773362911,3.95756,2526.9,2526.5,4.82722]
[1729773363118,4.72354,2527.4,2526.9,3.95741]
[1729773363319,3.95681,2527.3,2526.9,3.95741]
[1729773363688,0.7668,2527.4,2526.9,3.95741]
[1729773363901,0.8018,2527.6,2527.0,4.73296]
[1729773364108,3.95688,2527.3,2527.0,0.7758]
[1729773364414,0.7958,2527.3,2526.9,3.95733]
[1729773364587,3.95676,2527.4,2527.0,3.95718]
[1729773364798,3.95644,2527.6,2527.2,4.73273]
[1729773364799,3.95639,2527.6,2527.2,4.73273]
[1729773365091,3.95649,2527.5,2527.2,0.7758]
[1729773365517,7.91284,2527.6,2527.2,0.7758]
[1729773365818,3.95639,2527.6,2527.2,0.7758]
[1729773365979,4.01740743,2527.6,2527.2,0.7758]
[1729773366487,3.95654,2527.5,2527.2,0.7758]
[1729773367093,4.01755743,2527.5,2527.2,0.7758]
[1729773367534,4.75207,2527.7,2527.2,0.7758]
[1729773367686,3.95649,2527.5,2527.2,0.7758]
[1729773368386,3.95649,2527.5,2527.1,3.95703]
[1729773368791,3.95666,2527.4,2527.0,0.7725]
[1729773368993,3.95666,2527.4,2527.0,5.4959575]
[1729773369325,3.95649,2527.5,2527.0,5.4959575]
[1729773369523,4.01750743,2527.5,2527.0,5.4959575]
[1729773369727,4.01750743,2527.5,2527.0,1.5387975]
[1729773369728,4.75924,2527.4,2527.0,1.5387975]
[1729773369887,4.75924,2527.4,2527.0,5.4959775]
[1729773370283,3.95685,2527.3,2527.0,0.7725]
[1729773371618,0.8026,2527.4,2527.0,0.7725]
[1729773371779,8.716,2527.4,2527.0,4.72976]
[1729773372118,3.95718,2527.1,2526.8,0.7758]
[1729773372278,3.95718,2527.1,2526.7,4.03684357]
[1729773372479,4.01792743,2527.3,2526.7,4.03684357]
[1729773372480,3.95702,2527.2,2526.7,4.03684357]
[1729773372719,3.95702,2527.2,2526.8,3.95757]
[1729773373029,3.95702,2527.2,2526.9,0.1503932]
[1729773373226,3.95681,2527.3,2527.0,0.7758]
[1729773373384,3.95681,2527.3,2527.0,0.9261203]
[1729773374807,3.93580784,2527.3,2527.0,0.9261203]
[1729773375013,7.89271784,2527.3,2527.0,0.9261203]
[1729773375718,3.95661,2527.5,2527.1,3.95703]
[1729773376129,3.95661,2527.5,2527.2,0.15009185]
[1729773376332,3.95626,2527.7,2527.2,0.15009185]
[1729773376333,0.7591,2527.8,2527.4,3.95663]
[1729773376531,0.7591,2527.8,2527.5,0.473243]
[1729773376532,0.06101743,2527.8,2527.5,0.473243]
[1729773376692,3.95617,2527.7,2527.5,0.14973684]
[1729773377027,3.95624,2527.7,2527.3,4.73251]
[1729773377228,3.95624,2527.7,2527.6,0.14961852]
[1729773377387,0.8179,2527.6,2527.1,0.7758]
[1729773377589,0.06101743,2527.5,2527.2,0.15009185]
[1729773377892,0.8179,2527.6,2527.2,0.15009185]
[1729773377893,4.83530743,2527.6,2527.2,0.15009185]
[1729773378728,3.9567,2527.4,2527.2,0.15009185]
[1729773379287,4.01771743,2527.4,2527.0,3.95726]
[1729773379531,4.01771743,2527.4,2527.3,0.1499735]
[1729773379826,4.01771743,2527.4,2527.0,3.95726]
[1729773380032,7.97446743,2527.4,2527.3,0.1499735]
[1729773380204,7.91345,2527.4,2527.3,0.1499735]
[1729773380386,3.9567,2527.4,2527.3,0.1499735]
[1729773380605,3.9567,2527.4,2527.0,4.826296]
[1729773380833,4.01771743,2527.4,2527.1,0.1502102]
[1729773381226,3.9565,2527.5,2527.1,4.1073002]
[1729773381427,3.95664,2527.4,2527.1,0.1502102]
[1729773381950,4.01765743,2527.4,2527.1,0.1502102]
[1729773382104,3.95679,2527.3,2527.1,0.1502102]
[1729773382302,3.95679,2527.3,2526.6,6.03204755]
[1729773382303,3.95719,2527.1,2526.6,8.6914]
[1729773382643,3.95718,2527.1,2526.7,3.95773]
[1729773382806,3.9572,2527.1,2526.6,4.81275901]
[1729773383000,3.95728,2527.0,2526.6,4.81275901]
[1729773383225,3.95728,2527.0,2526.7,1.2639849]
[1729773383433,4.75503,2527.2,2526.7,5.2216249]
[1729773383611,4.75503,2527.2,2526.8,3.95753]
[1729773383815,3.95712,2527.1,2526.7,5.2216749]
[1729773384103,3.95679,2527.3,2526.8,1.45469649]
[1729773384304,3.95717,2527.1,2526.7,5.2216949]
[1729773384817,4.01818743,2527.1,2526.7,5.2216949]
[1729773385230,3.95706,2527.2,2526.7,9.1793349]
[1729773385438,3.95706,2527.2,2526.8,3.95757]
[1729773387029,3.95702,2527.2,2526.9,0.7758]
[1729773387231,3.95702,2527.2,2526.8,3.95755]
[1729773387446,3.95716,2527.1,2526.7,6.06877013]
[1729773387610,3.95716,2527.1,2526.8,1.00265701]
[1729773388150,3.95726,2527.0,2526.9,0.15054201]
[1729773388358,4.82167743,2527.0,2526.9,0.15054201]
[1729773388643,4.82167743,2527.0,2526.6,3.95782]
[1729773389346,4.82167743,2527.0,2526.7,0.15077879]
[1729773389523,3.0,2527.6,2526.7,5.29511867]
[1729773389524,0.7941,2527.2,2526.7,5.29511867]
[1729773389718,0.85511743,2527.2,2526.8,3.9575]
[1729773390250,0.85511743,2527.2,2526.9,0.15057922]
[1729773390410,0.8211,2527.4,2526.9,4.10791922]
[1729773390610,4.01782743,2527.3,2527.0,0.81445638]
[1729773390835,3.95681,2527.3,2527.1,0.15034248]
[1729773391144,0.8211,2527.4,2527.1,0.15034248]
[1729773391329,4.77776,2527.4,2527.1,0.15034248]
[1729773391536,3.95666,2527.4,2527.1,0.15034248]
[1729773391714,3.95666,2527.4,2527.1,0.92614248]
[1729773392252,4.01751743,2527.5,2527.1,5.45300137]
[1729773392609,4.01751743,2527.5,2527.1,1.49592137]
[1729773392833,3.95665,2527.4,2527.1,1.49592137]
[1729773393048,3.95639,2527.6,2527.1,1.49592137]
[1729773393253,3.95651,2527.5,2527.2,0.23895154]
[1729773393534,0.06101743,2527.6,2527.2,0.38917567]
[1729773393844,3.95644,2527.6,2527.2,0.38917567]
[1729773394928,7.91286,2527.6,2527.2,0.38917567]
[1729773395130,3.95642,2527.6,2527.2,0.38917567]
[1729773395329,3.95642,2527.6,2527.3,0.57708978]
[1729773395542,3.95642,2527.6,2527.3,0.72719556]
[1729773396638,4.75763,2527.8,2527.3,0.72719556]
[1729773396851,4.75763,2527.8,2527.3,4.68390556]
[1729773397052,3.95645,2527.6,2527.4,0.88796971]
[1729773397256,3.95645,2527.6,2527.3,0.72719556]
[1729773397466,0.8015,2527.8,2527.3,0.72719556]
[1729773397677,3.95618,2527.7,2527.3,0.15010578]
[1729773398180,7.91245,2527.7,2527.2,3.9568]
[1729773398380,3.95642,2527.6,2527.4,0.14988409]
[1729773398670,7.91282,2527.6,2527.5,0.14976576]
[1729773398843,3.9564,2527.6,2527.5,0.14976576]
[1729773399033,3.9564,2527.6,2527.1,0.7758]
[1729773399034,3.95663,2527.5,2527.1,0.7758]
[1729773399235,3.95663,2527.5,2527.2,0.15012077]
[1729773399634,3.95666,2527.4,2527.2,0.15012077]
[1729773400771,3.95679,2527.3,2527.2,0.15012077]
[1729773401137,3.95679,2527.3,2526.9,4.73049]
[1729773401436,3.95665,2527.4,2527.0,4.03632702]
[1729773401752,3.95665,2527.4,2527.1,1.02678856]
[1729773402068,3.95621,2527.7,2527.2,0.7731]
[1729773402236,3.95607,2527.8,2527.3,3.95668]
[1729773402435,3.95641,2527.6,2527.4,0.14976009]
[1729773402768,0.06101743,2527.6,2527.2,0.7731]
[1729773402965,3.95643,2527.6,2527.5,0.14965003]
[1729773403269,3.95643,2527.6,2527.5,0.14964176]
[1729773403567,3.95643,2527.6,2527.2,4.73004]
[1729773403771,3.95643,2527.6,2527.5,0.14963763]
[1729773404072,3.95625,2527.7,2527.5,0.14963763]
[1729773404378,3.95625,2527.7,2527.3,5.34844273]
[1729773404666,3.95625,2527.7,2527.4,0.61215427]
[1729773404836,3.95625,2527.7,2527.4,0.76189369]
[1729773406374,7.91254,2527.7,2527.4,0.76189369]
[1729773406577,3.95632,2527.6,2527.4,0.14973942]
[1729773407076,3.95625,2527.7,2527.2,6.04256512]
[1729773407077,3.95625,2527.7,2527.5,0.14962109]
[1729773407273,3.95625,2527.7,2527.5,0.7754]
[1729773407579,3.95625,2527.7,2527.6,0.14950278]
[1729773412547,3.95625,2527.7,2527.3,4.73257]
[1729773412748,3.95625,2527.7,2527.6,0.14950278]
[1729773412946,3.95625,2527.7,2527.3,4.73257]
[1729773413455,3.95625,2527.7,2527.4,0.14973942]
[1729773413873,3.95632,2527.6,2527.4,0.14973942]
[1729773414165,4.75437,2527.5,2527.4,0.14973942]
[1729773414363,4.81538743,2527.5,2527.4,0.14973942]
[1729773414671,3.95667,2527.4,2527.1,0.7637]
[1729773414849,3.95667,2527.4,2527.1,1.36704251]
[1729773415052,3.95667,2527.4,2527.1,2.67958763]
[1729773415743,0.7979,2527.5,2527.1,2.67958763]
[1729773416146,3.95663,2527.4,2527.1,1.36704251]
[1729773417943,4.75444,2527.5,2527.1,1.36704251]
[1729773418144,4.75444,2527.5,2527.2,0.14988103]
[1729773419451,4.75444,2527.5,2527.2,1.46242615]
[1729773419782,3.95654,2527.5,2527.2,2.08866224]
[1729773420375,4.73199,2527.7,2527.3,3.95677]
[1729773420579,3.95619,2527.7,2527.4,0.7758]
[1729773420888,0.06101743,2527.8,2527.4,0.7758]
[1729773420889,3.95607,2527.8,2527.4,6.19462427]
[1729773421062,3.95607,2527.8,2527.5,1.02305015]
[1729773421256,3.95607,2527.8,2527.5,1.17260098]
[1729773421460,3.95597,2527.9,2527.5,6.4414761]
[1729773421785,6.04338512,2528.1,2527.6,3.95621]
[1729773421966,3.95579,2528.0,2527.6,3.95621]
[1729773422165,6.10440255,2528.1,2527.7,4.1053942]
[1729773422166,0.7752,2528.1,2527.7,4.1053942]
[1729773422375,4.57406039,2528.6,2527.7,4.1053942]
[1729773422376,0.7906,2528.6,2528.3,3.95522]
[1729773422545,3.95444,2528.8,2528.5,1.31254512]
[1729773422855,3.95444,2528.8,2528.6,0.14822092]
[1729773423263,3.95401,2529.1,2528.6,0.14822092]
[1729773423496,3.95422,2529.0,2528.6,0.14822092]
[1729773423654,3.95437,2528.9,2528.6,0.14822092]
[1729773423851,3.95422,2529.0,2528.6,0.14822092]
[1729773424153,3.95422,2529.0,2528.6,4.10297092]
[1729773424567,3.95422,2529.0,2528.6,0.14822092]
[1729773424781,5.00216236,2529.0,2528.6,0.14822092]
[1729773425056,1.04794236,2529.0,2528.6,1.46076604]
[1729773425253,3.95398,2529.1,2528.6,5.41544604]
[1729773425479,3.95398,2529.1,2528.6,5.49453062]
[1729773425799,3.95421,2529.0,2528.6,0.2273055]
[1729773426089,3.95398,2529.1,2528.7,3.95459]
[1729773426252,4.75612,2529.2,2528.8,0.07908492]
[1729773426590,3.95399,2529.1,2528.9,0.14772579]
[1729773427097,3.95399,2529.1,2529.0,0.14760761]
[1729773427258,3.95399,2529.1,2528.7,3.95449]
[1729773427458,3.95399,2529.1,2528.8,0.14784399]
[1729773428185,1.673289,2529.2,2528.8,0.14784399]
[1729773428186,4.824829,2529.2,2528.8,4.95713557]
[1729773428392,3.95398,2529.1,2528.8,1.00272557]
[1729773428563,3.95398,2529.1,2528.8,0.92364399]
[1729773429487,7.90804,2529.1,2528.8,0.92364399]
[1729773429695,3.95398,2529.1,2528.8,0.92364399]
[1729773430613,7.90805,2529.1,2528.8,0.92364399]
[1729773430816,3.95398,2529.1,2528.8,0.92364399]
[1729773431220,3.95383,2529.2,2528.8,0.92364399]
[1729773431925,3.95397,2529.1,2528.8,0.92364399]
[1729773433926,3.95428,2528.9,2528.8,0.14784399]
[1729773434223,4.01529743,2528.9,2528.4,7.73084]
[1729773434421,3.95428,2528.9,2528.8,0.14700952]
[1729773434622,0.94610857,2528.9,2528.4,7.73084]
[1729773434787,3.95432,2528.9,2528.8,0.14700952]
[1729773434986,3.95428,2528.9,2528.4,7.73084]
[1729773435328,4.01529743,2528.9,2528.4,4.73084]
[1729773435495,4.01529743,2528.9,2528.5,0.14736416]
[1729773435903,3.95444,2528.8,2528.5,0.14736416]
[1729773437699,3.95428,2528.9,2528.5,4.1812931]
[1729773438087,3.95428,2528.9,2528.5,0.14736416]
[1729773438288,7.90868,2528.9,2528.5,0.14736416]
[1729773438503,3.95428,2528.9,2528.5,0.14736416]
[1729773438706,3.95444,2528.8,2528.5,0.14736416]
[1729773438987,0.7558,2529.0,2528.5,0.14736416]
[1729773439188,3.95411,2529.1,2528.5,0.22645308]
[1729773439392,3.95422,2529.0,2528.5,4.87795416]
[1729773439593,3.95422,2529.0,2528.5,8.83276416]
[1729773439823,3.95422,2529.0,2528.5,4.87795416]
[1729773440024,3.95422,2529.0,2528.6,3.95473]
[1729773440291,3.95422,2529.0,2528.7,0.14712359]
[1729773440686,3.95422,2529.0,2528.5,4.73059]
[1729773440892,3.95422,2529.0,2528.8,0.14700538]
[1729773441119,3.95422,2529.0,2528.6,3.95475]
[1729773441317,3.95422,2529.0,2528.9,0.14688719]
[1729773441523,3.95422,2529.0,2528.6,3.95475]
[1729773441685,3.95422,2529.0,2528.9,0.14688719]
[1729773441891,3.95422,2529.0,2528.6,3.95475]
[1729773442093,3.95422,2529.0,2528.9,0.14688719]
[1729773442335,3.95422,2529.0,2528.6,3.95475]
[1729773442631,3.95422,2529.0,2528.9,0.14688719]
[1729773443136,3.95422,2529.0,2528.6,3.95475]
[1729773443446,3.95422,2529.0,2528.9,0.14688719]
[1729773443646,2.37797797,2531.3,2529.0,3.954]
[1729773443647,3.95343,2529.5,2529.0,3.954]
[1729773443801,0.8302,2529.6,2529.1,0.07906978]
[1729773443995,0.8302,2529.6,2529.2,3.95372]
[1729773444325,0.8302,2529.6,2529.3,0.14638559]
[1729773444500,2.92954668,2530.2,2529.5,3.95334]
[1729773444501,0.06101743,2530.0,2529.5,3.95334]
[1729773444697,3.95266,2530.0,2529.5,6.88288668]
[1729773444939,3.95266,2530.0,2529.6,1.24424917]
[1729773445302,3.95243,2530.1,2529.7,0.7748]
[1729773445523,3.95243,2530.1,2529.7,0.99970773]
[1729773445726,3.95243,2530.1,2529.7,0.92065525]
[1729773445948,3.9526,2530.0,2529.7,0.92065525]
[1729773446335,3.95223,2530.3,2529.7,5.47089112]
[1729773446336,3.95225,2530.2,2529.7,5.47089112]
[1729773446649,3.95248,2530.1,2529.7,1.51787112]
[1729773447013,3.9518,2530.5,2529.8,0.07904796]
[1729773447014,3.95193,2530.5,2529.8,0.07904796]
[1729773447213,3.95203,2530.4,2529.9,3.95263]
[1729773447459,3.9518,2530.5,2530.0,4.347823]
[1729773447615,3.9518,2530.5,2530.1,0.7758]
[1729773447815,3.9518,2530.5,2530.2,0.07903577]
[1729773448116,3.9518,2530.5,2530.3,0.1448743]
[1729773448317,3.9518,2530.5,2530.1,0.7758]
[1729773448542,3.9518,2530.5,2530.4,0.14462009]
[1729773448743,7.90334,2530.6,2530.1,1.6834203]
[1729773448946,0.06101743,2530.8,2530.4,0.14462009]
[1729773448947,3.95141,2530.8,2530.4,0.14462009]
[1729773449115,3.95149,2530.7,2530.2,3.95216]
[1729773449316,3.9514,2530.8,2530.5,0.14450205]
[1729773449551,3.9514,2530.8,2530.2,3.95216]
[1729773449751,3.95156,2530.7,2530.6,0.14438401]
[1729773449958,3.95116,2530.9,2530.4,3.95186]
[1729773450264,3.95109,2531.0,2530.6,0.92008401]
[1729773450417,3.95109,2531.0,2530.7,0.07902074]
[1729773450618,3.95109,2531.0,2530.7,0.22328672]
[1729773450818,7.90163,2531.2,2530.7,0.22328672]
[1729773451056,3.95079,2531.2,2530.7,0.22328672]
[1729773451362,3.95085,2531.1,2530.7,0.14426598]
[1729773451930,3.95079,2531.2,2530.7,0.14426598]
[1729773452273,3.95085,2531.1,2530.7,0.14426598]
[1729773452430,0.756,2531.6,2530.7,0.14426598]
[1729773452630,3.95131,2530.8,2530.7,0.14426598]
[1729773452973,3.95131,2530.8,2530.3,0.7758]
[1729773453147,3.95148,2530.7,2530.3,0.7758]
[1729773453521,3.95131,2530.8,2530.3,0.7758]
[1729773453721,3.95118,2530.9,2530.4,0.07902543]
[1729773453950,3.95118,2530.9,2530.4,0.55970497]
[1729773454315,3.95118,2530.9,2530.4,4.43253954]
[1729773454542,3.95085,2531.1,2530.5,4.03074186]
[1729773455022,4.01167743,2531.3,2530.5,4.03074186]
[1729773455023,3.95076,2531.2,2530.6,4.70801]
[1729773455219,3.95086,2531.1,2530.7,0.07901404]
[1729773455463,3.95086,2531.1,2530.7,0.470801]
[1729773456167,3.95065,2531.3,2530.8,0.07901502]
[1729773456640,7.90134,2531.3,2530.8,0.07901502]
[1729773456892,7.90134,2531.3,2530.8,0.9209216]
[1729773457044,3.95065,2531.3,2530.8,4.8721616]
[1729773457233,3.95065,2531.3,2531.0,0.7564]
[1729773459021,3.95043,2531.4,2531.0,0.7564]
[1729773459221,3.95043,2531.4,2531.0,1.71437116]
[1729773460370,3.95043,2531.4,2531.0,0.7564]
[1729773460667,3.95023,2531.5,2531.0,0.7564]
[1729773460971,3.95023,2531.5,2531.0,4.70736]
[1729773461174,3.95039,2531.4,2531.0,0.7564]
[1729773461469,3.95063,2531.3,2531.0,1.227146]
[1729773461632,3.95063,2531.3,2531.0,0.7564]
[1729773461633,3.9508,2531.2,2531.0,0.7564]
[1729773461835,3.95109,2531.0,2530.7,0.7758]
[1729773463135,3.95109,2531.0,2530.8,0.14256412]
[1729773463360,3.95087,2531.1,2530.8,0.14256412]
[1729773463677,3.95087,2531.1,2530.9,0.14244611]
[1729773463860,3.951,2531.0,2530.9,0.14244611]
[1729773464170,3.95125,2530.9,2530.7,0.7758]
[1729773464346,3.95108,2531.0,2530.7,0.7758]
[1729773464544,3.95108,2531.0,2530.7,0.85482079]
[1729773465134,7.90218,2531.0,2530.7,0.85482079]
[1729773465376,7.90224,2531.0,2530.7,0.85482079]
[1729773465576,7.90224,2531.0,2530.7,0.7758]
[1729773466375,3.9512,2530.9,2530.7,0.7758]
[1729773468080,3.95086,2531.1,2530.7,1.25645909]
[1729773468304,7.90181,2531.1,2530.7,1.25645909]
[1729773468505,3.95086,2531.1,2530.7,1.25645909]
[1729773471098,3.95109,2531.0,2530.7,1.25645909]
[1729773471956,3.95109,2531.0,2530.4,0.48067954]
[1729773471957,3.95125,2530.9,2530.5,0.7758]
[1729773473371,3.95085,2531.1,2530.6,4.03063257]
[1729773473995,3.95085,2531.1,2530.6,7.98218257]
[1729773474174,3.95085,2531.1,2530.7,0.07902014]
[1729773474794,3.9507,2531.2,2530.7,4.51112715]
[1729773475071,3.95086,2531.1,2530.8,0.7758]
[1729773475929,3.95053,2531.3,2530.8,0.7758]
[1729773475930,3.95053,2531.3,2530.9,3.95116]
[1729773476230,3.95071,2531.2,2530.8,4.72708]
[1729773476824,3.95071,2531.2,2530.8,0.7758]
[1729773477195,3.95089,2531.1,2530.8,0.7758]
[1729773478419,3.95089,2531.1,2530.9,0.14253679]
[1729773479031,3.951,2531.0,2530.9,0.14253679]
[1729773479219,3.95089,2531.1,2530.9,0.14253679]
[1729773479534,7.90183,2531.1,2530.9,0.14253679]
[1729773479839,3.951,2531.0,2530.9,0.14253679]
[1729773480123,3.95089,2531.1,2530.5,4.72758]
[1729773480289,3.95116,2530.9,2530.5,5.94360495]
[1729773480492,3.95104,2531.0,2530.5,9.89526495]
[1729773480695,3.95119,2530.9,2530.5,5.94348495]
[1729773482796,3.95132,2530.8,2530.5,1.99182495]
[1729773482995,3.9518,2530.5,2530.3,0.7758]
[1729773483595,7.90369,2530.5,2530.3,0.7758]
[1729773483827,3.95202,2530.4,2530.1,0.7758]
[1729773484240,3.95207,2530.4,2530.0,4.07]
[1729773484395,3.95207,2530.4,2530.0,8.902413]
[1729773486399,3.95207,2530.4,2530.0,12.854873]
[1729773486999,4.74195,2530.6,2530.0,8.902313]
[1729773487196,4.74185,2530.6,2530.2,3.95223]
[1729773487437,7.90338,2530.6,2530.2,6.02138303]
[1729773487603,3.95165,2530.6,2530.2,6.02138303]
[1729773487802,4.7097,2530.8,2530.3,4.03110724]
[1729773488120,3.9514,2530.8,2530.4,3.95185]
[1729773488308,3.9514,2530.8,2530.4,4.56185403]
[1729773488515,3.95119,2530.9,2530.5,0.07902765]
[1729773488901,4.70944,2531.0,2530.5,0.07902765]
[1729773489232,3.95116,2530.9,2530.5,0.07902765]
[1729773489434,0.7761,2531.3,2530.6,0.7758]
[1729773489636,3.95124,2530.9,2530.5,3.95178]
[1729773489827,3.95124,2530.9,2530.6,0.07902298]
[1729773490033,3.95101,2531.0,2530.6,0.07902298]
[1729773490336,3.95101,2531.0,2530.5,3.9517]
[1729773490337,3.95119,2530.9,2530.5,3.9517]
[1729773490539,3.95119,2530.9,2530.6,0.9289304]
[1729773490751,3.95132,2530.8,2530.6,0.9289304]
[1729773490957,3.95132,2530.8,2530.4,5.33773403]
[1729773491314,3.95109,2531.0,2530.4,5.33773403]
[1729773491315,3.95124,2530.9,2530.4,5.33773403]
[1729773491514,3.95148,2530.7,2530.4,0.7758]
[1729773491749,3.95158,2530.7,2530.2,6.02130303]
[1729773492057,3.95188,2530.5,2530.0,10.86577869]
[1729773492351,3.95188,2530.5,2530.1,3.9524]
[1729773492738,3.95188,2530.5,2530.2,0.07903573]
[1729773493044,3.95185,2530.5,2530.1,3.9524]
[1729773493249,3.95185,2530.5,2530.3,0.14338927]
[1729773493462,3.95194,2530.4,2530.2,0.14350733]
[1729773493753,3.95194,2530.4,2529.5,9.77930433]
[1729773493754,3.95249,2530.1,2529.8,2.84473403]
[1729773494046,3.95219,2530.3,2529.8,4.07278952]
[1729773494250,3.95236,2530.2,2529.8,2.00385549]
[1729773494483,3.95253,2530.1,2529.8,2.00385549]
[1729773495138,3.9521,2530.3,2529.8,2.00385549]
[1729773495337,3.95226,2530.2,2529.8,5.95670549]
[1729773496043,3.9521,2530.3,2529.9,5.02272589]
[1729773496243,3.95191,2530.5,2530.0,3.95251]
[1729773496445,3.95187,2530.5,2530.1,4.03144842]
[1729773496756,3.95194,2530.4,2529.9,4.94361155]
[1729773497051,3.95194,2530.4,2530.0,3.95255]
[1729773497278,3.95194,2530.4,2530.0,4.91974616]
[1729773497725,3.95226,2530.2,2530.0,0.96719616]
[1729773497924,0.7954,2530.6,2529.9,3.95261]
[1729773497925,3.95201,2530.4,2529.9,3.95261]
[1729773498124,3.95201,2530.4,2530.0,4.820668]
[1729773500123,3.95157,2530.7,2530.2,0.7758]
[1729773500329,3.95157,2530.7,2530.2,4.72797]
[1729773500330,3.95163,2530.6,2530.2,4.72797]
[1729773500569,3.95163,2530.6,2530.3,0.868037]
[1729773501059,3.95149,2530.7,2530.3,4.89914873]
[1729773501650,3.95163,2530.6,2530.3,0.94706873]
[1729773501829,3.95149,2530.7,2530.3,4.89914873]
[1729773503274,3.95149,2530.7,2530.3,4.70926273]
[1729773504142,3.95104,2531.0,2530.5,4.72755]
[1729773504341,3.95104,2531.0,2530.6,4.03064166]
[1729773505170,3.95104,2531.0,2530.6,3.95162]
[1729773505468,3.95104,2531.0,2530.7,0.0790202]
[1729773505798,3.95132,2530.8,2530.5,0.7758]
[1729773506100,3.95132,2530.8,2530.5,1.73814033]
[1729773506296,7.90214,2531.0,2530.5,5.68984033]
[1729773506593,3.95123,2530.9,2530.5,5.68984033]
[1729773507297,3.95104,2531.0,2530.5,5.68984033]
[1729773508262,3.95104,2531.0,2530.6,0.14333605]
[1729773508665,3.95104,2531.0,2530.6,4.09493605]
[1729773509004,3.95085,2531.1,2530.8,0.7758]
[1729773509533,3.95085,2531.1,2530.9,0.14298199]
[1729773510004,3.95067,2531.3,2530.9,0.14298199]
[1729773510163,3.95085,2531.1,2530.9,0.14298199]
[1729773510362,3.95073,2531.2,2530.9,0.14298199]
[1729773510955,3.95089,2531.1,2530.9,0.14298199]
[1729773511410,7.90183,2531.1,2530.9,0.14298199]
[1729773511900,3.951,2531.0,2530.9,0.14298199]
[1729773512103,3.95089,2531.1,2530.9,0.14298199]
[1729773513099,3.95062,2531.3,2530.9,0.14298199]
[1729773513100,3.95069,2531.2,2530.9,0.14298199]
[1729773513309,3.95069,2531.2,2530.9,0.22199668]
[1729773513916,3.95085,2531.1,2530.8,0.7758]
[1729773514080,3.95069,2531.2,2530.9,0.1428212]
[1729773514282,3.95061,2531.3,2530.9,4.0939312]
[1729773514481,3.95071,2531.2,2530.9,0.1428212]
[1729773518417,3.95076,2531.2,2530.9,0.1428212]
[1729773520316,4.01196743,2531.1,2530.9,0.1428212]
[1729773520477,3.951,2531.0,2530.6,4.72734]
[1729773520676,3.951,2531.0,2530.7,0.142847]
[1729773521517,3.95118,2530.9,2530.7,0.142847]
[1729773521817,3.951,2531.0,2530.7,0.142847]
[1729773522685,3.95088,2531.1,2530.7,0.142847]
[1729773523120,3.95101,2531.0,2530.7,0.142847]
[1729773523322,3.95088,2531.1,2530.7,0.142847]
[1729773523978,3.95088,2531.1,2530.7,4.094297]
[1729773525127,3.95103,2531.0,2530.7,0.142847]
[1729773525422,3.95088,2531.1,2530.7,0.142847]
[1729773525628,3.95088,2531.1,2530.7,4.094307]
[1729773525995,7.90184,2531.1,2530.7,4.094307]
[1729773526196,7.90184,2531.1,2530.7,0.142847]
[1729773526197,3.95088,2531.1,2530.7,0.142847]
[1729773526423,3.95107,2531.0,2530.7,0.142847]
[1729773526714,3.95088,2531.1,2530.7,0.142847]
[1729773528209,3.95088,2531.1,2530.7,4.094257]
[1729773528982,3.95088,2531.1,2530.7,4.094287]
[1729773529722,3.95101,2531.0,2530.7,0.142847]
[1729773530221,3.95117,2530.9,2530.7,0.142847]
[1729773530523,3.95122,2530.9,2530.7,0.142847]
[1729773530705,3.95098,2531.1,2530.7,4.094267]
[1729773531022,3.95098,2531.1,2530.7,0.142847]
[1729773531184,3.95108,2531.0,2530.7,0.142847]
[1729773531706,3.95105,2531.0,2530.7,0.142847]
[1729773532380,7.90194,2531.1,2530.7,4.094287]
[1729773532625,3.95073,2531.2,2530.8,4.030328]
[1729773532786,3.95086,2531.1,2530.8,0.14273312]
[1729773533121,3.95086,2531.1,2530.8,0.07901801]
[1729773533308,3.95086,2531.1,2530.9,0.14264808]
[1729773533629,4.7477,2531.0,2530.9,0.14264808]
[1729773533917,3.95157,2530.7,2530.3,0.7691]
[1729773534427,3.9517,2530.6,2530.3,0.7691]
[1729773534728,4.7741,2530.6,2530.1,4.72818]
[1729773534881,3.95202,2530.4,2530.1,0.7758]
[1729773535426,3.95217,2530.3,2530.1,0.7758]
[1729773536481,3.95179,2530.5,2530.1,0.7758]
[1729773536482,3.95198,2530.4,2530.1,0.7758]
[1729773536726,3.952,2530.4,2530.1,0.7758]
[1729773537998,3.952,2530.4,2530.2,0.14362688]
[1729773538995,3.9521,2530.3,2530.2,0.14362688]
[1729773539410,3.9521,2530.3,2529.9,0.7705]
[1729773539607,3.95195,2530.4,2530.2,0.14365574]
[1729773539818,3.95195,2530.4,2530.0,0.07904228]
[1729773540011,3.95195,2530.4,2530.3,0.14353768]
[1729773540201,3.95195,2530.4,2530.0,0.07904228]
[1729773540202,3.95195,2530.4,2529.9,4.72316]
[1729773540402,3.95222,2530.3,2529.9,4.72316]
[1729773540731,3.95222,2530.3,2529.9,6.297776]
[1729773541024,3.95222,2530.3,2529.9,2.345116]
[1729773541412,3.95222,2530.3,2529.9,6.297816]
[1729773541630,3.95226,2530.2,2529.9,2.345116]
[1729773542789,3.95212,2530.3,2529.9,2.345116]
[1729773543010,3.95212,2530.3,2529.9,2.154168]
[1729773543220,3.95212,2530.3,2529.9,6.106858]
[1729773543810,3.95212,2530.3,2529.9,2.154168]
[1729773544021,0.06101743,2530.5,2529.9,0.579552]
[1729773544198,3.95205,2530.4,2530.0,4.03157229]
[1729773544400,3.95205,2530.4,2530.0,3.95253]
[1729773545033,3.9521,2530.3,2529.9,4.532122]
[1729773545547,3.95275,2529.9,2529.5,6.02209873]